Cogmind - Beta 11.1 @@@ ROGUE MODE // 2022.05.07 @ 14:37:04 Player: Olga Result: Destroyed by D-53 Grenadier with Mini Grenade Launcher Performance ------------- Evolutions (0) 0 Regions Visited (4) 800 Robots Destroyed (24) 120 Value Destroyed (439) 439 Prototype IDs (0) 0 Alien Tech Used (0) 0 Bonus (0) 0 TOTAL SCORE: 1359 Bonus ------- None Cogmind --------- Core Integrity 0/250 Matter 222/300 Energy 248/250 System Corruption 2% Temperature Cool (58) Movement Core (900) Ox17 Location -9/Mines Parts ------- > --- POWER (1) -------- Ion Engine > --- PROPULSION (2) --- (None) > --- UTILITY (2) ------ High-capacity Storage Unit > --- WEAPON (2) ------- Light Cannon Rocket Launcher > --- INVENTORY (20) --- Light Ion Engine Wheel Compact Wheel Medium Storage Unit High-capacity Matter Pod (200) High-capacity Matter Pod (200) Core Shielding Core Shielding Medium Laser Assault Rifle Light Assault Rifle Rocket Launcher Peak State ------------ > --- POWER ------------ Ion Engine > --- PROPULSION ------- Light Treads Light Treads > --- UTILITY ---------- High-capacity Storage Unit Signal Interpreter > --- WEAPON ----------- Light Cannon Battle Cannon > --- INVENTORY -------- Light Ion Engine Wheel Compact Wheel Medium Storage Unit High-capacity Matter Pod High-capacity Matter Pod Core Shielding Core Shielding Medium Laser Assault Rifle Light Assault Rifle Rocket Launcher Rocket Launcher [Rating: 9] Favorites ----------- Power Ion Engine Engine Ion Engine Propulsion Light Treads Treads Light Treads Leg Aluminum Leg Utility Signal Interpreter Storage Medium Storage Unit Processor Signal Interpreter Protection Core Shielding Weapon Light Cannon Energy Gun Medium Laser Ballistic Gun Assault Rifle Ballistic Cannon Light Cannon Launcher Rocket Launcher Build | -11 -10 -10 -10 -9 ------- Run | Scr Mat Min Exi Min Slots Evolved . | . . . . . Power . | . . . . . Propulsion . | . . . . . Utility . | . . . . . Weapon . | . . . . . Parts Attached 18 | . 12 2 1 3 Power 1 | . 1 . . . Engine 1 | . 1 . . . Core . | . . . . . Reactor . | . . . . . Propulsion 4 | . 3 1 . . Treads 4 | . 3 1 . . Leg . | . . . . . Wheel . | . . . . . Hover . | . . . . . Flight . | . . . . . Utility 6 | . 5 . 1 . Device . | . . . . . Storage 4 | . 3 . 1 . Processor 1 | . 1 . . . Hackware . | . . . . . Protection 1 | . 1 . . . Artifact . | . . . . . Weapon 7 | . 3 1 . 3 Energy Gun 1 | . 1 . . . Energy Cannon . | . . . . . Ballistic Gun 2 | . 1 1 . . Ballistic Cannon 3 | . 1 . . 2 Launcher 1 | . . . . 1 Special Weapon . | . . . . . Impact Weapon . | . . . . . Slashing Weapon . | . . . . . Piercing Weapon . | . . . . . Special Melee Weapon . | . . . . . Unidentified Prototypes . | . . . . . Parts Lost 6 | . 1 1 . 4 Power . | . . . . . Propulsion 3 | . . 1 . 2 Utility 1 | . . . . 1 Weapon 2 | . 1 . . 1 Highest Loss Streak 4 | . 1 1 . 4 To Critical Strikes . | . . . . . Average Slot Usage (%) 99 | . 98 100 100 99 Engine 14 | . 14 14 14 14 Treads 26 | . 25 28 28 27 Leg 1 | . 2 . . . Storage 14 | . 14 14 14 14 Processor 10 | . 5 14 14 14 Protection 2 | . 7 . . . Ballistic Gun 17 | . 22 14 14 12 Ballistic Cannon 9 | . 2 14 14 15 Naked Turns . | . . . . . Heaviest Build 50 | 14 50 20 49 49 Greatest Support 40 | 20 40 40 40 40 Greatest Overweight (x) 1 | . 1 . 1 1 Average Overweight (x) . | . . . . 1 Largest Inventory Capacity 20 | . 20 10 20 20 Average Capacity 12 | . 8 10 15 20 Most Carried 13 | . 10 10 12 13 Average Carried 9 | . 8 9 11 12 Final Capacity 20 | 8 10 10 20 20 Final Carried 12 | 6 10 10 12 12 Class Distribution -------------------- 100% | Mutant Dominant Class ---------------- Mutant | -10/Materials Mutant | -10/Mines Mutant | -10/Exiles Mutant | -9/Mines Resources | -11 -10 -10 -10 -9 ----------- Run | Scr Mat Min Exi Min Matter Collected 677 | 200 330 48 89 10 Remotely . | . . . . . Salvage Created 567 | . 499 46 . 22 Parts 48 | . 41 7 . . Haulers Intercepted 1 | . 1 . . . Recyclers Shooed 1 | . 1 . . . Parts Field Recycled . | . . . . . Retrieved Matter . | . . . . . Parts Self-Destructed . | . . . . . Prevented . | . . . . . Kills | -11 -10 -10 -10 -9 ------- Run | Scr Mat Min Exi Min Combat Hostiles Destroyed 19 | . 10 7 . 2 Guns 12 | . 10 2 . . Cannons 5 | . . 3 . 2 AOE 2 | . . 2 . . Classes Destroyed 6 | . 5 . . 1 Worker 4 | . 4 . . . Hauler 1 | . 1 . . . Watcher 2 | . 2 . . . Swarmer 10 | . 3 7 . . Grunt 7 | . 7 . . . Assembled 2 | . . . . 2 Best Kill Streak 3 | . 3 3 . 2 Combat Bots Only 3 | . 3 3 . 2 Max Kills in Single Turn 2 | . 1 2 . 1 Gunslinging . | . . . . . Exploded 2 | . . 2 . . Melee . | . . . . . Uniques/NPCs Destroyed . | . . . . . Combat | -11 -10 -10 -10 -9 -------- Run | Scr Mat Min Exi Min Damage Taken 1258 | . 379 280 . 599 Core 296 | . 50 80 . 166 Absorbed by Shields . | . . . . . Redirected to Shielding 9 | . 9 . . . Core Remaining (%) 100 | 100 . . . . Volleys Fired 64 | . 41 14 . 9 Largest 2 | . 2 2 . 2 Hottest 74 | . 70 55 . 74 Shots Fired 125 | . 81 28 . 16 Gun 91 | . 77 14 . . Cannon 33 | . 4 14 . 15 Launcher 1 | . . . . 1 Special . | . . . . . Kinetic 119 | . 76 28 . 15 Thermal 5 | . 5 . . . Explosive 1 | . . . . 1 Electromagnetic . | . . . . . Robot Hit Streak 7 | . 7 6 . 2 Robot Miss Streak 5 | . 5 2 . 3 Penetration Max . | . . . . . Secondary Targets . | . . . . . Shots Hit Robots 66 | . 43 16 . 7 Core Hits 33 | . 24 7 . 2 Critical Kills . | . . . . . Critical Parts Destroyed . | . . . . . Critical Strikes 1 | . . . . 1 Blast 1 | . . . . 1 Melee Attacks . | . . . . . Impact . | . . . . . Slashing . | . . . . . Piercing . | . . . . . Sneak Attacks . | . . . . . Combat Hostiles . | . . . . . Follow-up Attacks . | . . . . . Damage Inflicted 1148 | . 601 348 . 199 Guns 646 | . 529 117 . . Cannons 317 | . 57 132 . 128 Explosions 170 | . . 99 . 71 Melee . | . . . . . Ramming 15 | . 15 . . . Kinetic 938 | . 561 249 . 128 Thermal 124 | . 25 99 . . Explosive 71 | . . . . 71 Electromagnetic . | . . . . . Impact . | . . . . . Slashing . | . . . . . Piercing . | . . . . . Highest Corruption 2 | . . . . 2 Average Corruption 2 | . . . . 2 Corruption Purged . | . . . . . Corruption Blocked . | . . . . . Overload Shots . | . . . . . Overflow Damage . | . . . . . Projectiles . | . . . . . Explosions . | . . . . . Melee . | . . . . . Knockbacks 6 | . . 3 . 3 Impact . | . . . . . Kinetic 6 | . . 3 . 3 Secondary . | . . . . . Self-Inflicted Damage 156 | . . 148 . 8 Shots 5 | . . 4 . 1 Rammed 5 | . 5 . . . Targets Rammed 5 | . 5 . . . Kicked . | . . . . . Crushed . | . . . . . Highest Temperature 124 | . 45 46 . 124 Average Temperature 42 | . 21 25 . 65 Received Heat Transfer 202 | . 162 . . 40 Siege Activations . | . . . . . Robots Corrupted . | . . . . . Combat Hostiles . | . . . . . Parts Fried . | . . . . . Impact Corruptions . | . . . . . Robots Melted . | . . . . . Combat Hostiles . | . . . . . Parts Melted 1 | . . 1 . . Heat Transferred 224 | . 74 150 . . Parts Sabotaged . | . . . . . Parts Stolen . | . . . . . Parts Stripped . | . . . . . Power Chain Reactions . | . . . . . Missiles Intercepted . | . . . . . Alert | -11 -10 -10 -10 -9 ------- Run | Scr Mat Min Exi Min Peak Influence 338 | . 239 338 . . Initial 17 | . . 17 . . Average 120 | . 95 282 . . Maximum Alert Level 1 | . 1 1 . . Low Security (%) 75 | . 92 . . 100 Level 1 24 | . 7 99 . . Level 2 . | . . . . . Level 3 . | . . . . . Level 4 . | . . . . . Level 5 . | . . . . . High Security . | . . . . . Max Security . | . . . . . Squads Dispatched 6 | . 6 . . . Investigation 4 | . 4 . . . Extermination . | . . . . . Reinforcement 2 | . 2 . . . Assault . | . . . . . Garrison . | . . . . . Intercept . | . . . . . Searches Triggered . | . . . . . Construction Impeded . | . . . . . Haulers Reinforced . | . . . . . Active Scanning Responses . | . . . . . Cargo Convoy Interrupts . | . . . . . Stealth | -11 -10 -10 -10 -9 --------- Run | Scr Mat Min Exi Min Distress Signals . | . . . . . Communications Jammed . | . . . . . Distress Signals . | . . . . . Times Spotted 45 | . 18 7 . 20 Peak Tracking Total 19 | . 4 3 . 19 Tactical Retreats 2 | . . 1 . 1 Traps | -11 -10 -10 -10 -9 ------- Run | Scr Mat Min Exi Min Traps Triggered 4 | . 4 . . . Indirectly . | . . . . . Trap Hack Attempts . | . . . . . Triggered . | . . . . . Disarmed . | . . . . . Reprogrammed . | . . . . . Reused . | . . . . . Traps Extracted . | . . . . . Installed . | . . . . . Triggered . | . . . . . Machines | -11 -10 -10 -10 -9 ---------- Run | Scr Mat Min Exi Min Machines Disabled 5 | . . 5 . . Max in Single Turn 5 | . . 5 . . Machines Sabotaged . | . . . . . Garrisons Compromised . | . . . . . Overloaded Fab Kills . | . . . . . Hacking | -11 -10 -10 -10 -9 --------- Run | Scr Mat Min Exi Min Machines Accessed 8 | . 4 . 4 . Terminals 4 | . 4 . . . Fabricators . | . . . . . Repair Stations . | . . . . . Recycling Units . | . . . . . Scanalyzers . | . . . . . Garrison Access . | . . . . . Total Hacks 62 | . 13 . 49 . Successful 52 | . 3 . 49 . Failed 10 | . 10 . . . Catastrophic 3 | . 3 . . . Database Lockouts . | . . . . . Manual 5 | . 5 . . . Terminals 13 | . 13 . . . Fabricators . | . . . . . Repair Stations . | . . . . . Recycling Units . | . . . . . Scanalyzers . | . . . . . Garrison Access . | . . . . . Terminal Hacks 52 | . 3 . 49 . Record 49 | . . . 49 . Robot Analysis 2 | . 2 . . . Branch Access Points 1 | . 1 . . . Fabricator Hacks . | . . . . . Repair Station Hacks . | . . . . . Recycling Unit Hacks . | . . . . . Scanalyzer . | . . . . . Garrison Access Hacks . | . . . . . Unauthorized Hacks . | . . . . . Terminals . | . . . . . Fabricators . | . . . . . Repair Stations . | . . . . . Recycling Units . | . . . . . Scanalyzers . | . . . . . Garrison Access . | . . . . . Data Cores Recovered . | . . . . . Used . | . . . . . Hacking Detections 4 | . 4 . . . Full Trace Events 2 | . 2 . . . Feedback Events . | . . . . . Feedback Blocked . | . . . . . Robot Schematics Acquired . | . . . . . Robots Built . | . . . . . Authchips . | . . . . . Time . | . . . . . Total Robot Build Rating . | . . . . . Part Schematics Acquired . | . . . . . Parts Built . | . . . . . Authchips . | . . . . . Time . | . . . . . Total Part Build Rating . | . . . . . Parts Repaired . | . . . . . Time . | . . . . . Parts Recycled . | . . . . . Recycled Matter . | . . . . . Retrieved Matter . | . . . . . Retrieved Components . | . . . . . Parts Scanalyzed . | . . . . . Part Schematics Acquired . | . . . . . Parts Damaged . | . . . . . Bothacking | -11 -10 -10 -10 -9 ------------ Run | Scr Mat Min Exi Min Used RIF Installer . | . . . . . Robots Hacked . | . . . . . Non-combat . | . . . . . Combat . | . . . . . Robot Hacks Applied . | . . . . . Relay Couplers Released . | . . . . . Fabnet Peak Effective % . | . . . . . Robots Rewired . | . . . . . Allies Hacked . | . . . . . Hacks Repelled . | . . . . . Allies | -11 -10 -10 -10 -9 -------- Run | Scr Mat Min Exi Min Total Allies . | . . . . . Largest Group . | . . . . . Highest-Rated Group . | . . . . . Highest-Rated Ally . | . . . . . Total Orders . | . . . . . Ally Attacks . | . . . . . Total Damage . | . . . . . Kills . | . . . . . Allies Corrupted . | . . . . . Allies Melted . | . . . . . Intel | -11 -10 -10 -10 -9 ------- Run | Scr Mat Min Exi Min Robot Analysis Total 2 | . 2 . . . Derelict Logs Recovered 1 | . . 1 . . Drone Launches . | . . . . . Drone Recoveries . | . . . . . Exploration | -11 -10 -10 -10 -9 ------------- Run | Scr Mat Min Exi Min Turns Passed 2636 | . 1031 280 1164 161 Spaces Moved 1331 | 1 547 148 584 51 Core . | . . . . . Treads 1255 | . 472 148 584 51 Legs 76 | 1 75 . . . Wheels . | . . . . . Hover . | . . . . . Flight . | . . . . . Fastest Speed 120 | 120 120 160 160 240 Average Speed 178 | 120 154 160 199 240 Slowest Speed 240 | 120 240 160 240 240 Overloaded Moves . | . . . . . Propulsion Burnouts . | . . . . . Robots Hopped . | . . . . . Cave-ins Triggered . | . . . . . Exploration Rate (%) 46 | 2 75 39 93 22 Regions Visited 4 Branch Regions 3 Pre-discovered Areas 1 | . . . 1 . Known Exits Taken 3 | . 1 1 1 . Unknown Exits Taken 1 | 1 . . . . Scrap Searched . | . . . . . Spaces Dug . | . . . . . Terrain Destroyed 29 | . . 19 . 10 Melee . | . . . . . Projectile 1 | . . . . 1 AOE 28 | . . 19 . 9 Terrain Rammed . | . . . . . Walls Destroyed . | . . . . . Machines Disabled . | . . . . . Actions | -11 -10 -10 -10 -9 --------- Run | Scr Mat Min Exi Min Total 1472 | . 649 163 586 74 Wait 33 | . 23 . . 10 Move 1327 | . 546 147 583 51 Hop . | . . . . . Pick Up 15 | . 12 . 2 1 Fast Attach 1 | . 1 . . . Attach 3 | . 1 1 . 1 Detach . | . . . . . Swap 14 | . 10 1 1 2 Drop 10 | . 10 . . . Fire 64 | . 41 14 . 9 Melee . | . . . . . Ram . | . . . . . Kick . | . . . . . Crush 5 | . 5 . . . Escape Stasis . | . . . . . Rewire . | . . . . . Trap . | . . . . . Miscellaneous . | . . . . . Route ------- -11/Scrapyard -10/Materials (discovered 4 exits: *Mat x2 / *Min x2) -10/Mines -10/Exiles (discovered 2 exits: *Min x2) -9/Mines History --------- Turn | Location | Event 1 | -11/Scrapyard | Discovered new exit (range 0) 1 | -11/Scrapyard | Entered Materials 223 | -10/Materials | Discovered new exit (range 4) 231 | -10/Materials | Discovered new exit (range 16) 311 | -10/Materials | Build established: Mutant 481 | -10/Materials | Discovered new exit (range 9) 667 | -10/Materials | Identified exit to Mines 700 | -10/Materials | Identified exit to Materials 800 | -10/Materials | Discovered exit to Mines (range 12) 1032 | -10/Materials | Entered Mines 1221 | -10/Mines | Core integrity fell below 50% 1304 | -10/Mines | Deemed a non-threat by the Exiles lab entrance 1305 | -10/Mines | Discovered new exit (range 5) 1310 | -10/Mines | Identified exit to Exiles 1312 | -10/Mines | Entered Exiles 1313 | -10/Exiles | Identified exit to Mines 1375 | -10/Exiles | Met 8R-AWN 1402 | -10/Exiles | Met EX-HEX 1471 | -10/Exiles | Met EX-BIN 1637 | -10/Exiles | Met EX-DEC 1658 | -10/Exiles | Learned location of Zion (-7) 1901 | -10/Exiles | Visited The Gauntlet 2476 | -10/Exiles | Entered Mines 2566 | -9/Mines | A weapon hastily lodged in a ceiling crevice suddenly fell to the ground 2594 | -9/Mines | Assembled infested the area 2632 | -9/Mines | Core integrity fell below 20% 2637 | -9/Mines | Destroyed by D-53 Grenadier with Mini Grenade Launcher Last Messages --------------- 02619_ K-01 Serf collects debris. 02621_ C-30 ARC bursts open, deploying its payload. 02621_ D-53 Grenadier unfolds itself. 02623_ D-53 Grenadier knocked back. 02626_ Lgt. Treads destroyed. 02627_ as-29471 destroyed. 02627_ as-64598 destroyed. 02627_ as-96767 destroyed. 02629_ D-53 Grenadier knocked back. 02631_ D-53 Grenadier destroyed. 02631_ Lgt. Treads destroyed. 02632_ Signal Interpreter destroyed. 02632_ System corrupted by crushing effect (+2). 02633_ as-86401 destroyed. 02633_ Battle Cannon destroyed. 02633_ as-14146 destroyed. 02633_ as-18150 destroyed. 02633_ as-49726 destroyed. 02633_ as-82091 destroyed. 02637_ The unstable cave ceiling collapses. Map ----- +----------------------------------------------------+ | | | | | | | | | | | | | | | | | | | ?????????????????????????????????????????????????? | | ?????????????????????????????????????????????????? | | ?????????????????????????????????????????????????? | | ?????????????????????????????????????????????????? | | ?????????????????????????????????????????????????? | | ?????????????????????????????????????????????????? | | ?????????????????????????????????????????????????? | | ?????????????????????????????????????????????????? | | ?????????????????????????????????????????????????? | | ?????????????????????????????????????????????????? | | ????????????????????####?????????????????????????? | | ?????????????????#### # #####????????? ??????????? | | ?????????????????? aa # ##?????%= ?????????? | | ???????????????????# #?? u ??????????? | | ???????????????????# a # ""???????????? | | ???????????????????## % ""???????????? | | ???????????????????# @ d ""???????????? | | ?????????????????# # ????????? | | ???????????? # #???? ???????????? | | ???????????######### ##???? ???????????? | | ???????????????????## # ##????? ???????????? | | ????????????????????### ###?????? ???????????? | | ??????????????????????# ##??????? ???????????? | | ??????????????????????# ##??????# #???????????? | | ??????????????????????# ####???# #???????????? | | ??????????????????????## ##??# #???????????? | | ???????????????????????# #??# #???????????? | | ???????????????????????# ### ##?# #???????????? | | ?????????????????????? #?## ### #???????????? | | ???????????????????? #??## #???????????? | | ??????????????????? #######???## # ##???????????? | | ????????????????? ????????????#### #????????????? | | ????????????????#?????????????????# #????????????? | | ???????????????????????###??????### #????????????? | | ??????????????????????## #?????# #????????????? | | ?????????????????????## ##???# ###????????????? | | ???????????????????### ##?# #??????????????? | | ?????????????????? ### #??????????????? | | ?????????????????? ## #??????????????? | | ????????????????????????# ##?????????????? | | ?????????????????????????# #?????????????? | +----------------------------------------------------+ Best States ------------- Heat Dissipation 25 Energy Generation 10 Energy Capacity 250 Matter Stores 300 Matter Capacity 300 Sight Range 16 Terrain Scan Density 10 Core Shielding 20 Evasion (%) 55 Recoil Reduction 2 Item Schematics ----------------- None Robot Schematics ------------------ None Fabricated ------------ Nothing Alien Tech Used ----------------- None Achievements -------------- None Challenges ------------ None Game ------ Seed TeslaStorageSlayer Manual? 0 Play Time 00:29:18 Cumulative 213.0 hours Start 2022.05.07 @ 13:09:30 End 2022.05.07 @ 14:37:04 Sessions 1 Manual Loads 0 Difficulty Rogue Special Mode None Game No. 316 Rogue 313 Adventurer 0 Explorer 3 Win Type - Total 8 Types 8/0/0/0/0/0/0/0/0 Lore% 68 Gallery% 70 Achievement% 59 Wizard Run 0 Options --------- ASCII 1 Keyboard 0 Movement Vi Keybinds 0 Fullscreen 1 Font 18/SmallcapsGlow Map View 76x50 Tactical HUD 1 Map Filters NONE Filters NONE Steam 1 RUN: 316bb781-2aae-473f-bea9-cdadc91b53f0